fUST/lending_fUST_20250627
["ID","MTS","AMOUNT","RATE_DAILY","PERIOD"]
[368014346,1750992639737,-500.01492519,0.00019178,2]
[368014348,1750992639747,-415.37,0.00019183,3]
[368014350,1750992639757,-346.14,0.00019183,3]
[368014352,1750992639768,-1661.49,0.00019193,3]
[368014354,1750992639778,-830.75,0.00019193,3]
[368014356,1750992639788,-2509.99692114,0.00019203,2]
[368014358,1750992639797,-207.4,0.00019304,2]
[368014360,1750992639807,-177.12025893,0.00019352,2]
[368014362,1750992639816,-173.07,0.00019442,3]
[368014364,1750992639825,-460.0,0.00019452,2]
[368014366,1750992639834,-460.0,0.00019452,2]
[368014368,1750992639844,-460.0,0.00019452,2]
[368014370,1750992639854,-415.0,0.00019452,2]
[368014372,1750992639863,-460.0,0.00019452,2]
[368014374,1750992639872,-460.0,0.00019452,2]
[368014376,1750992639882,-460.0,0.00019452,2]
[368014378,1750992639891,-460.0,0.00019452,2]
[368014380,1750992639901,-460.0,0.00019452,2]
[368014382,1750992639910,-460.0,0.00019452,2]
[368014384,1750992639920,-581.90262038,0.00019452,2]
[368014386,1750992639929,-460.93,0.00019452,2]
[368014388,1750992639941,-460.0,0.00019452,2]
[368014389,1750992639952,-486.8362577,0.00019452,2]
[368014392,1750992639962,-460.0,0.00019452,2]
[368014394,1750992639972,-528.37,0.00019452,2]
[368014396,1750992639981,-460.0,0.00019452,2]
[368014397,1750992639990,-460.0,0.00019452,2]
[368014400,1750992640000,-460.0,0.00019452,2]
[368014402,1750992640010,-460.0,0.00019452,2]
[368014403,1750992640020,-1525.91,0.00019452,2]
[368014405,1750992640029,-460.0,0.00019452,2]
[368014407,1750992640038,-460.0,0.00019452,2]
[368014408,1750992640047,-460.0,0.00019452,2]
[368014410,1750992640056,-460.0,0.00019452,2]
[368014412,1750992640065,-460.0,0.00019452,2]
[368014414,1750992640074,-460.0,0.00019452,2]
[368014416,1750992640084,-460.0,0.00019452,2]
[368014418,1750992640094,-460.0,0.00019452,2]
[368014419,1750992640103,-483.38,0.00019452,2]
[368014422,1750992640113,-209.71438581,0.00019452,2]
[368014425,1750992640122,-611.78,0.00019452,2]
[368014428,1750992640131,-460.0,0.00019452,2]
[368014431,1750992640140,-460.0,0.00019452,2]
[368014434,1750992640150,-460.0,0.00019452,2]
[368014437,1750992640160,-460.0,0.00019452,2]
[368014440,1750992640170,-460.0,0.00019452,2]
[368014442,1750992640179,-460.0,0.00019452,2]
[368014445,1750992640189,-603.23,0.00019452,2]
[368014447,1750992640198,-460.0,0.00019452,2]
[368014449,1750992640207,-460.0,0.00019452,2]
[368014451,1750992640217,-460.0,0.00019452,2]
[368014453,1750992640227,-255.5526168,0.00019452,2]
[368014455,1750992640236,-316.49874158,0.00019452,2]
[368014457,1750992640246,-538.28,0.00019452,2]
[368014459,1750992640256,-460.0,0.00019452,2]
[368014461,1750992640265,-460.0,0.00019452,2]
[368014463,1750992640275,-460.0,0.00019452,2]
[368014465,1750992640284,-460.0,0.00019452,2]
[368014467,1750992640293,-466.03,0.00019452,2]
[368014469,1750992640303,-898.55,0.00019452,2]
[368014471,1750992640312,-460.0,0.00019452,2]
[368014473,1750992640321,-788.31,0.00019452,2]
[368014475,1750992640330,-460.0,0.00019452,2]
[368014477,1750992640339,-491.85,0.00019452,2]
[368014479,1750992640349,-467.77,0.00019452,2]
[368014481,1750992640358,-460.0,0.00019452,2]
[368014483,1750992640368,-460.0,0.00019452,2]
[368014485,1750992640378,-460.0,0.00019452,2]
[368014487,1750992640387,-460.0,0.00019452,2]
[368014489,1750992640397,-1701.67,0.00019452,2]
[368014492,1750992640416,-460.0,0.00019452,2]
[368014495,1750992640427,-463.73,0.00019452,2]
[368014497,1750992640436,-460.0,0.00019452,2]
[368014499,1750992640446,-460.0,0.00019452,2]
[368014501,1750992640456,-460.0,0.00019452,2]
[368014503,1750992640466,-460.0,0.00019452,2]
[368014505,1750992640476,-174.6574551,0.00019452,2]
[368014507,1750992640486,-460.0,0.00019452,2]
[368014509,1750992640496,-646.08,0.00019452,2]
[368014511,1750992640505,-1567.66,0.00019452,2]
[368014513,1750992640515,-512.45,0.00019452,2]
[368014515,1750992640524,-460.0,0.00019452,2]
[368014517,1750992640533,-623.55,0.00019452,2]
[368014519,1750992640543,-460.0,0.00019452,2]
[368014521,1750992640552,-1065.26,0.00019452,2]
[368014523,1750992640562,-694.22,0.00019452,2]
[368014525,1750992640571,-460.0,0.00019452,2]
[368014527,1750992640581,-460.0,0.00019452,2]
[368014529,1750992640591,-221.96838249,0.00019452,2]
[368014531,1750992640601,-1140.48,0.00019452,2]
[368014533,1750992640610,-460.0,0.00019452,2]
[368014536,1750992640620,-828.68,0.00019452,2]
[368014538,1750992640630,-516.42128929,0.00019452,2]
[368014540,1750992640639,-460.0,0.00019452,2]
[368014542,1750992640650,-2948.54,0.00019452,2]
[368014544,1750992640659,-592.33,0.00019452,2]
[368014546,1750992640669,-2346.24,0.00019452,2]
[368014548,1750992640678,-460.0,0.00019452,2]
[368014550,1750992640688,-460.0,0.00019452,2]
[368014552,1750992640698,-782.93,0.00019452,2]
[368014554,1750992640707,-460.0,0.00019452,2]
[368014556,1750992640717,-2197.17,0.00019452,2]
[368014558,1750992640727,-460.0,0.00019452,2]
[368014560,1750992640736,-460.0,0.00019452,2]
[368014562,1750992640746,-460.0,0.00019452,2]
[368014564,1750992640756,-2243.13,0.00019452,2]
[368014566,1750992640769,-683.13,0.00019452,2]
[368014568,1750992640778,-723.81,0.00019452,2]
[368014570,1750992640788,-460.0,0.00019452,2]
[368014572,1750992640797,-668.79,0.00019452,2]
[368014575,1750992640807,-460.0,0.00019452,2]
[368014577,1750992640817,-460.0,0.00019452,2]
[368014579,1750992640827,-554.93,0.00019452,2]
[368014581,1750992640836,-460.0,0.00019452,2]
[368014583,1750992640845,-460.0,0.00019452,2]
[368014585,1750992640855,-1129.62,0.00019452,2]
[368014587,1750992640864,-460.0,0.00019452,2]
[368014589,1750992640873,-694.15,0.00019452,2]
[368014591,1750992640883,-460.0,0.00019452,2]
[368014593,1750992640892,-1585.56,0.00019452,2]
[368014595,1750992640901,-460.0,0.00019452,2]
[368014597,1750992640910,-483.56,0.00019452,2]
[368014598,1750992640920,-460.0,0.00019452,2]
[368014600,1750992640930,-460.0,0.00019452,2]
[368014602,1750992640943,-1284.93,0.00019452,2]
[368014604,1750992640953,-460.0,0.00019452,2]
[368014606,1750992640962,-1119.96,0.00019452,2]
[368014608,1750992640972,-460.0,0.00019452,2]
[368014610,1750992640983,-657.98,0.00019452,2]
[368014613,1750992640992,-460.0,0.00019452,2]
[368014614,1750992641002,-851.85,0.00019452,2]
[368014617,1750992641011,-460.0,0.00019452,2]
[368014619,1750992641023,-641.74,0.00019452,2]
[368014621,1750992641032,-1048.91,0.00019452,2]
[368014623,1750992641041,-1483.26,0.00019452,2]
[368014625,1750992641051,-159.2394861,0.00019534,2]
[368014627,1750992641060,-575.118961,0.00019534,2]
[368014629,1750992641070,-159.2394861,0.00019578,2]
[368014631,1750992641079,-575.118961,0.00019578,2]
[368014633,1750992641089,-159.1672323,0.00019578,2]
[368014635,1750992641098,-575.118961,0.00019578,2]
[368014637,1750992641108,-575.118961,0.00019578,2]
[368014639,1750992641117,-41796.1871153,0.00019626,2]
[368014641,1750992641127,-291.57567768,0.00019724,2]
[368014645,1750992641153,-364.52002253,0.00019724,2]
[368014654,1750992641237,-683.68893676,0.00019724,2]
[368014690,1750992641570,-1170.21228417,0.00019724,2]
[368014693,1750992641585,-460.0,0.00019726,2]
[368014694,1750992641595,-460.0,0.00019726,2]
[368014697,1750992641605,-460.0,0.00019726,2]
[368014698,1750992641615,-460.0,0.00019726,2]
[368014700,1750992641625,-460.0,0.00019726,2]
[368014702,1750992641635,-460.0,0.00019726,2]
[368014704,1750992641644,-460.0,0.00019726,2]
[368014707,1750992641654,-460.0,0.00019726,2]
[368014709,1750992641663,-460.93,0.00019726,2]
[368014711,1750992641672,-460.0,0.00019726,2]
[368014713,1750992641681,-460.0,0.00019726,2]
[368014715,1750992641690,-528.37,0.00019726,2]
[368014717,1750992641700,-460.0,0.00019726,2]
[368014718,1750992641709,-460.0,0.00019726,2]
[368014720,1750992641718,-460.0,0.00019726,2]
[368014722,1750992641728,-1525.91,0.00019726,2]
[368014724,1750992641737,-460.0,0.00019726,2]
[368014726,1750992641745,-460.0,0.00019726,2]
[368014728,1750992641755,-460.0,0.00019726,2]
[368014730,1750992641764,-460.0,0.00019726,2]
[368014732,1750992641773,-460.0,0.00019726,2]
[368014734,1750992641782,-460.0,0.00019726,2]
[368014736,1750992641792,-460.0,0.00019726,2]
[368014738,1750992641802,-460.0,0.00019726,2]
[368014740,1750992641811,-483.38,0.00019726,2]
[368014741,1750992641821,-611.78,0.00019726,2]
[368014743,1750992641831,-460.0,0.00019726,2]
[368014745,1750992641841,-460.0,0.00019726,2]
[368014747,1750992641851,-460.0,0.00019726,2]
[368014749,1750992641861,-460.0,0.00019726,2]
[368014751,1750992641870,-460.0,0.00019726,2]
[368014753,1750992641880,-603.23,0.00019726,2]
[368014755,1750992641889,-460.0,0.00019726,2]
[368014757,1750992641898,-460.0,0.00019726,2]
[368014759,1750992641908,-460.0,0.00019726,2]
[368014761,1750992641917,-538.28,0.00019726,2]
[368014763,1750992641927,-460.0,0.00019726,2]
[368014765,1750992641936,-460.0,0.00019726,2]
[368014767,1750992641948,-460.0,0.00019726,2]
[368014769,1750992641960,-460.0,0.00019726,2]
[368014771,1750992641969,-466.03,0.00019726,2]
[368014773,1750992641979,-898.55,0.00019726,2]
[368014775,1750992641988,-460.0,0.00019726,2]
[368014777,1750992641998,-788.31,0.00019726,2]
[368014778,1750992642008,-460.0,0.00019726,2]
[368014780,1750992642020,-491.85,0.00019726,2]
[368014782,1750992642030,-467.77,0.00019726,2]
[368014784,1750992642039,-460.0,0.00019726,2]
[368014786,1750992642049,-460.0,0.00019726,2]
[368014788,1750992642058,-460.0,0.00019726,2]
[368014790,1750992642067,-1701.67,0.00019726,2]
[368014792,1750992642076,-460.0,0.00019726,2]
[368014794,1750992642086,-463.73,0.00019726,2]
[368014796,1750992642095,-460.0,0.00019726,2]
[368014798,1750992642105,-460.0,0.00019726,2]
[368014800,1750992642114,-460.0,0.00019726,2]
[368014818,1750992642274,-460.0,0.00019726,2]
[368014820,1750992642285,-460.0,0.00019726,2]
[368014822,1750992642295,-646.08,0.00019726,2]
[368014824,1750992642305,-1567.66,0.00019726,2]
[368014826,1750992642314,-512.45,0.00019726,2]
[368014828,1750992642324,-460.0,0.00019726,2]
[368014830,1750992642333,-623.55,0.00019726,2]
[368014832,1750992642342,-460.0,0.00019726,2]
[368014833,1750992642351,-1065.26,0.00019726,2]
[368014835,1750992642361,-694.22,0.00019726,2]
[368014837,1750992642372,-460.0,0.00019726,2]
[368014839,1750992642382,-460.0,0.00019726,2]
[368014841,1750992642394,-1140.48,0.00019726,2]
[368014843,1750992642404,-460.0,0.00019726,2]
[368014846,1750992642414,-828.68,0.00019726,2]
[368014848,1750992642424,-460.0,0.00019726,2]
[368014850,1750992642434,-2948.54,0.00019726,2]
[368014852,1750992642443,-592.33,0.00019726,2]
[368014854,1750992642452,-2346.24,0.00019726,2]
[368014856,1750992642462,-460.0,0.00019726,2]
[368014858,1750992642473,-460.0,0.00019726,2]
[368014860,1750992642482,-782.93,0.00019726,2]
[368014862,1750992642492,-460.0,0.00019726,2]
[368014864,1750992642502,-2197.17,0.00019726,2]
[368014865,1750992642511,-460.0,0.00019726,2]
[368014867,1750992642521,-316.18358753,0.00019726,2]
[368014869,1750992642531,-460.0,0.00019726,2]
[368014872,1750992642542,-2243.13,0.00019726,2]
[368014873,1750992642551,-683.13,0.00019726,2]
[368014875,1750992642560,-723.81,0.00019726,2]
[368014877,1750992642570,-460.0,0.00019726,2]
[368014879,1750992642579,-668.79,0.00019726,2]
[368014881,1750992642589,-460.0,0.00019726,2]
[368014883,1750992642599,-554.93,0.00019726,2]
[368014885,1750992642607,-460.0,0.00019726,2]
[368014887,1750992642617,-460.0,0.00019726,2]
[368014889,1750992642626,-460.0,0.00019726,2]
[368014891,1750992642636,-1129.62,0.00019726,2]
[368014893,1750992642645,-460.0,0.00019726,2]
[368014895,1750992642654,-694.15,0.00019726,2]
[368014897,1750992642664,-460.0,0.00019726,2]
[368014899,1750992642673,-1585.56,0.00019726,2]
[368014901,1750992642682,-203.92720404,0.00019726,2]
[368014903,1750992642691,-483.56,0.00019726,2]
[368014905,1750992642700,-460.0,0.00019726,2]
[368014907,1750992642710,-460.0,0.00019726,2]
[368014909,1750992642719,-1284.93,0.00019726,2]
[368014910,1750992642728,-460.0,0.00019726,2]
[368014912,1750992642737,-1119.96,0.00019726,2]
[368014914,1750992642746,-460.0,0.00019726,2]
[368014916,1750992642755,-657.98,0.00019726,2]
[368014918,1750992642765,-460.0,0.00019726,2]
[368014920,1750992642774,-851.85,0.00019726,2]
[368014922,1750992642783,-460.0,0.00019726,2]
[368014924,1750992642792,-641.74,0.00019726,2]
[368014926,1750992642802,-1048.91,0.00019726,2]
[368014928,1750992642812,-1483.26,0.00019726,2]
[368014930,1750992642822,-500.0,0.0001974,2]
[368014932,1750992642831,-500.0,0.00019762,2]
[368014934,1750992642841,-500.0,0.00019762,2]
[368014936,1750992642850,-268.13961966,0.00019783,2]
[368014937,1750992642859,-500.60716057,0.00019783,2]
[368014939,1750992642869,-800.51499557,0.00019895,2]
[368014941,1750992642878,-5255.31569724,0.000199,2]
[368014943,1750992642888,-177.12025891,0.00019934,2]
[368014945,1750992642898,-1009.24711765,0.00019937,2]
[368014963,1750992643083,-266.18676446,0.00019937,2]
[368014965,1750992643095,-1234.56303903,0.00019937,2]
[368014967,1750992643105,-22.02615556,0.00019999,2]
[368014971,1750992643136,-262.248948,0.00019999,2]
[368015217,1750992646007,-460.0,0.00019178,2]
[368015219,1750992646017,-511.73,0.00019178,2]
[368015221,1750992646028,-460.0,0.00019452,2]
[368015223,1750992646037,-511.73,0.00019452,2]
[368015225,1750992646047,-154.940025,0.00019726,2]
[368015227,1750992646058,-305.059975,0.00019726,2]
[368015229,1750992646068,-343.900025,0.00019726,2]
[368015232,1750992646079,-167.829975,0.00019726,2]
[368015234,1750992646089,-215.72489644,0.00019999,2]
[368015236,1750992646099,-434.83618487,0.00019999,2]
[368015238,1750992646108,-500.0,0.00019999,2]
[368015240,1750992646117,-546.04848301,0.00019999,2]
[368015241,1750992646126,-500.0,0.00019999,2]
[368015243,1750992646135,-460.0,0.0002,2]
[368015245,1750992646145,-460.0,0.0002,2]
[368015247,1750992646154,-433.21120178,0.0002,2]
[368015249,1750992646163,-460.0,0.0002,2]
[368015251,1750992646172,-601.86199464,0.0002,2]
[368015253,1750992646181,-460.0,0.0002,2]
[368015255,1750992646191,-460.0,0.0002,2]
[368015257,1750992646201,-460.93,0.0002,2]
[368015259,1750992646211,-460.0,0.0002,2]
[368015261,1750992646220,-460.0,0.0002,2]
[368015264,1750992646229,-528.37,0.0002,2]
[368015266,1750992646239,-460.0,0.0002,2]
[368015268,1750992646248,-460.0,0.0002,2]
[368015270,1750992646258,-460.0,0.0002,2]
[368015272,1750992646267,-1525.91,0.0002,2]
[368015274,1750992646277,-460.0,0.0002,2]
[368015276,1750992646286,-460.0,0.0002,2]
[368015278,1750992646296,-460.0,0.0002,2]
[368015280,1750992646305,-460.0,0.0002,2]
[368015282,1750992646314,-460.0,0.0002,2]
[368015284,1750992646326,-460.0,0.0002,2]
[368015286,1750992646335,-460.0,0.0002,2]
[368015288,1750992646345,-460.0,0.0002,2]
[368015290,1750992646354,-483.38,0.0002,2]
[368015292,1750992646364,-611.78,0.0002,2]
[368015294,1750992646373,-460.0,0.0002,2]
[368015296,1750992646383,-460.0,0.0002,2]
[368015298,1750992646392,-460.0,0.0002,2]
[368015300,1750992646402,-460.0,0.0002,2]
[368015302,1750992646412,-460.0,0.0002,2]
[368015304,1750992646421,-603.23,0.0002,2]
[368015306,1750992646430,-460.0,0.0002,2]
[368015308,1750992646440,-460.0,0.0002,2]
[368015310,1750992646449,-460.0,0.0002,2]
[368015312,1750992646459,-538.28,0.0002,2]
[368015314,1750992646468,-460.0,0.0002,2]
[368015316,1750992646478,-460.0,0.0002,2]
[368015318,1750992646487,-403.2417808,0.0002,2]
[368015320,1750992646497,-898.55,0.0002,2]
[368015322,1750992646507,-460.0,0.0002,2]
[368015324,1750992646516,-788.31,0.0002,2]
[368015326,1750992646525,-460.0,0.0002,2]
[368015328,1750992646535,-491.85,0.0002,2]
[368015330,1750992646544,-467.77,0.0002,2]
[368015332,1750992646554,-351.08124292,0.0002,2]
[368015334,1750992646563,-460.0,0.0002,2]
[368015336,1750992646573,-460.0,0.0002,2]
[368015338,1750992646582,-1701.67,0.0002,2]
[368015340,1750992646591,-460.0,0.0002,2]
[368015342,1750992646600,-463.73,0.0002,2]
[368015344,1750992646610,-460.0,0.0002,2]
[368015346,1750992646620,-460.0,0.0002,2]
[368015348,1750992646630,-190.03868351,0.0002,2]
[368015350,1750992646640,-460.0,0.0002,2]
[368015353,1750992646651,-460.0,0.0002,2]
[368015354,1750992646660,-646.08,0.0002,2]
[368015357,1750992646670,-1567.66,0.0002,2]
[368015358,1750992646680,-460.0,0.0002,2]
[368015360,1750992646690,-623.55,0.0002,2]
[368015362,1750992646700,-460.0,0.0002,2]
[368015364,1750992646710,-1065.26,0.0002,2]
[368015366,1750992646719,-694.22,0.0002,2]
[368015368,1750992646728,-460.0,0.0002,2]
[368015372,1750992646739,-460.0,0.0002,2]
[368015373,1750992646749,-1140.48,0.0002,2]
[368015375,1750992646759,-460.0,0.0002,2]
[368015377,1750992646768,-185.36970882,0.0002,2]
[368015473,1750992649687,-643.31029118,0.0002,2]
[368015474,1750992649697,-460.0,0.0002,2]
[368015475,1750992649707,-515.61045372,0.0002,2]
[368015476,1750992666244,165.163624,0.00023,30]
[368015479,1750993108083,500.58,0.00024657,120]
[368015480,1750993288441,2565.5327068,0.00017819,2]
[368015481,1750993771091,-682.8033191,0.00018172,2]
[368015482,1750993771116,-160.0,0.0001915,2]
[368015483,1750993771140,-417.58,0.00019168,3]
[368015484,1750993771163,-208.79,0.00019168,3]
[368015485,1750993771186,-626.41,0.00019168,3]
[368015486,1750993771209,-300.0,0.00019175,2]
[368015487,1750993771232,-2568.89058642,0.00019176,2]
[368015488,1750993771364,-2565.5327068,0.00018121,2]
[368015489,1750993771394,-12047.26355265,0.00019176,2]
[368015490,1750993771421,-300.0,0.00019176,2]
[368015491,1750993771448,-1200.0,0.00019176,2]
[368015492,1750993771476,-500.0,0.00019177,2]
[368015493,1750993771502,-500.0,0.00019177,2]
[368015494,1750993771533,-407.94118413,0.00019177,2]
[368015495,1750993771562,-630.0,0.00019177,2]
[368015496,1750993771586,-164.04437816,0.00019177,2]
[368015497,1750993771613,-500.0,0.00019177,2]
[368015498,1750993771638,-451.16103387,0.00019177,2]
[368015499,1750993771663,-461.78723973,0.00019178,2]
[368015500,1750993771688,-460.0,0.00019178,2]
[368015501,1750993771712,-381.47508225,0.00019178,2]
[368015502,1750993771735,-430.0,0.00019178,2]
[368015503,1750993771760,-460.90281078,0.00019178,2]
[368015504,1750993771784,-460.0,0.00019178,2]
[368015505,1750993771808,-177.58599281,0.00019178,2]
[368015506,1750993771833,-460.0,0.00019178,2]
[368015507,1750993771856,-460.0,0.00019178,2]
[368015508,1750993772093,-191.59853848,0.00019178,2]
[368015509,1750993772116,-460.0,0.00019178,2]
[368015510,1750993772139,-460.0,0.00019178,2]
[368015511,1750993772162,-460.0,0.00019178,2]
[368015512,1750993772417,-460.0,0.00019178,2]
[368015513,1750993772442,-324.02743825,0.00019178,2]
[368015514,1750993772463,-460.0,0.00019178,2]
[368015515,1750993772483,-460.0,0.00019178,2]
[368015516,1750993772503,-460.0,0.00019178,2]
[368015517,1750993772524,-460.0,0.00019178,2]
[368015518,1750993772545,-460.0,0.00019178,2]
[368015519,1750993772565,-460.0,0.00019178,2]
[368015520,1750993772588,-460.0,0.00019178,2]
[368015521,1750993772610,-460.0,0.00019178,2]
[368015522,1750993772631,-501.47261852,0.00019178,2]
[368015523,1750993772652,-460.0,0.00019178,2]
[368015524,1750993772672,-460.0,0.00019178,2]
[368015525,1750993772692,-460.0,0.00019178,2]
[368015526,1750993772713,-460.0,0.00019178,2]
[368015527,1750993772733,-460.0,0.00019178,2]
[368015528,1750993772755,-460.0,0.00019178,2]
[368015529,1750993772775,-460.0,0.00019178,2]
[368015530,1750993772798,-460.0,0.00019178,2]
[368015531,1750993772819,-460.0,0.00019178,2]
[368015532,1750993772839,-452.09928715,0.00019178,2]
[368015533,1750993772860,-460.0,0.00019178,2]
[368015534,1750993772884,-586.30843324,0.00019178,2]
[368015535,1750993772904,-474.85110472,0.00019178,2]
[368015536,1750993772926,-460.0,0.00019178,2]
[368015537,1750993772947,-460.0,0.00019178,2]
[368015538,1750993772969,-460.0,0.00019178,2]
[368015539,1750993772989,-461.07914483,0.00019178,2]
[368015540,1750993773010,-460.0,0.00019178,2]
[368015541,1750993773031,-460.0,0.00019178,2]
[368015542,1750993773053,-460.0,0.00019178,2]
[368015543,1750993773076,-500.0,0.00019178,2]
[368015544,1750993773097,-677.49,0.00019178,2]
[368015545,1750993773119,-460.0,0.00019178,2]
[368015546,1750993773141,-460.0,0.00019178,2]
[368015547,1750993773163,-460.0,0.00019178,2]
[368015548,1750993773184,-466.32635174,0.00019178,2]
[368015549,1750993773205,-463.12401091,0.00019178,2]
[368015550,1750993773226,-463.98,0.00019178,2]
[368015551,1750993773247,-460.0,0.00019178,2]
[368015552,1750993773269,-460.0,0.00019178,2]
[368015553,1750993773290,-460.0,0.00019178,2]
[368015554,1750993773313,-460.0,0.00019178,2]
[368015555,1750993773338,-460.0,0.00019178,2]
[368015556,1750993773359,-460.0,0.00019178,2]
[368015557,1750993773379,-460.0,0.00019178,2]
[368015558,1750993773401,-460.0,0.00019178,2]
[368015559,1750993773422,-460.0,0.00019178,2]
[368015560,1750993773444,-460.0,0.00019178,2]
[368015561,1750993773466,-460.0,0.00019178,2]
[368015562,1750993773488,-460.0,0.00019178,2]
[368015563,1750993773508,-460.0,0.00019178,2]
[368015564,1750993773529,-460.0,0.00019178,2]
[368015565,1750993773550,-460.0,0.00019178,2]
[368015566,1750993773573,-460.0,0.00019178,2]
[368015567,1750993773595,-460.0,0.00019178,2]
[368015568,1750993773618,-460.0,0.00019178,2]
[368015569,1750993773639,-460.0,0.00019178,2]
[368015570,1750993773661,-460.0,0.00019178,2]
[368015571,1750993773683,-600.5870608,0.00019178,2]
[368015572,1750993773705,-460.0,0.00019178,2]
[368015573,1750993773728,-460.0,0.00019178,2]
[368015574,1750993773750,-460.0,0.00019178,2]
[368015575,1750993773775,-460.0,0.00019178,2]
[368015576,1750993773796,-460.0,0.00019178,2]
[368015577,1750993773819,-460.0,0.00019178,2]
[368015578,1750993773840,-460.0,0.00019178,2]
[368015579,1750993773863,-460.0,0.00019178,2]
[368015580,1750993773898,-460.0,0.00019178,2]
[368015581,1750993773919,-460.0,0.00019178,2]
[368015582,1750993773941,-460.0,0.00019178,2]
[368015583,1750993773963,-460.0,0.00019178,2]
[368015584,1750993773984,-459.84543686,0.00019178,2]
[368015585,1750993774005,-460.0,0.00019178,2]
[368015586,1750993774027,-728.52,0.00019178,2]
[368015587,1750993774051,-197.23274814,0.00019178,2]
[368015588,1750993774075,-460.0,0.00019178,2]
[368015589,1750993774099,-460.0,0.00019178,2]
[368015590,1750993774121,-460.0,0.00019178,2]
[368015591,1750993774145,-460.0,0.00019178,2]
[368015592,1750993774167,-460.0,0.00019178,2]
[368015593,1750993774189,-460.0,0.00019178,2]
[368015594,1750993774211,-460.0,0.00019178,2]
[368015595,1750993774232,-460.0,0.00019178,2]
[368015596,1750993774254,-460.0,0.00019178,2]
[368015597,1750993774275,-460.0,0.00019178,2]
[368015598,1750993774297,-460.0,0.00019178,2]
[368015599,1750993774317,-463.88007666,0.00019178,2]
[368015600,1750993774337,-460.0,0.00019178,2]
[368015601,1750993774358,-500.0,0.00019178,2]
[368015602,1750993774378,-461.88657365,0.00019178,2]
[368015603,1750993774398,-460.0,0.00019178,2]
[368015604,1750993774418,-460.0,0.00019178,2]
[368015605,1750993774439,-460.0,0.00019178,2]
[368015606,1750993774460,-460.0,0.00019178,2]
[368015607,1750993774482,-460.0,0.00019178,2]
[368015608,1750993774504,-460.0,0.00019178,2]
[368015609,1750993774525,-459.75808184,0.00019178,2]
[368015610,1750993774547,-460.0,0.00019178,2]
[368015611,1750993774569,-460.0,0.00019178,2]
[368015612,1750993774590,-460.0,0.00019178,2]
[368015613,1750993774611,-460.0,0.00019178,2]
[368015614,1750993774632,-460.0,0.00019178,2]
[368015615,1750993774653,-460.0,0.00019178,2]
[368015616,1750993774675,-460.0,0.00019178,2]
[368015617,1750993774695,-460.0,0.00019178,2]
[368015618,1750993774716,-460.0,0.00019178,2]
[368015619,1750993774737,-1365.31,0.00019178,2]
[368015620,1750993774759,-460.0,0.00019178,2]
[368015621,1750993774791,-460.0,0.00019178,2]